bitfinex/quotes_ETHUSD_20260304
["timestamp","ask_amount","ask_price","bid_price","bid_amount"]
[1772606775968,2.20622076,1982.6,1981.8,2.24893464]
[1772606776450,5.19106401,1982.8,1981.8,2.24893464]
[1772606776877,5.19106401,1982.8,1982.0,0.001]
[1772606777072,2.20622076,1982.7,1982.0,0.001]
[1772606777370,3.4671912,1982.6,1982.0,0.001]
[1772606777582,2.20622076,1982.5,1982.0,0.001]
[1772606778477,2.20522076,1982.5,1981.9,0.001]
[1772606779258,2.22653436,1982.3,1981.9,0.001]
[1772606779479,3.95153436,1982.2,1981.9,0.001]
[1772606780585,1.26109765,1982.4,1981.9,0.001]
[1772606781085,2.98608022,1982.5,1981.9,2.11426791]
[1772606781491,1.26108022,1982.5,1981.9,3.37563505]
[1772606782283,1.26108022,1982.5,1982.0,2.11326791]
[1772606784389,1.26108022,1982.5,1981.9,0.001]
[1772606784594,3.28983239,1982.5,1981.9,0.001]
[1772606786310,2.02875217,1982.4,1981.9,0.001]
[1772606786810,3.75475217,1982.3,1981.9,0.001]
[1772606787200,2.02875217,1982.2,1981.9,0.001]
[1772606788307,3.2900407,1982.1,1981.9,0.001]
[1772606788609,3.2900407,1982.1,1981.7,0.001]
[1772606788781,3.2900407,1982.1,1981.5,0.001]
[1772606789115,2.02875217,1981.8,1981.3,0.001]
[1772606789310,3.75575217,1981.7,1981.1,0.001]
[1772606789510,2.02875217,1981.5,1980.6,2.11326791]
[1772606789816,2.02875217,1981.5,1980.6,3.37549985]
[1772606789817,1.727,1981.4,1980.6,3.37549985]
[1772606789986,2.02875217,1981.5,1980.6,2.11326791]
[1772606790183,1.727,1981.4,1980.6,3.37550054]
[1772606790386,1.727,1981.4,1980.6,2.11326791]
[1772606790387,1.2617978,1981.3,1980.6,2.11326791]
[1772606790590,1.2617978,1981.3,1980.6,3.37551119]
[1772606791022,1.2617978,1981.3,1980.7,2.11326791]
[1772606791199,1.26141581,1981.9,1980.9,2.11326791]
[1772606792516,3.29016798,1981.9,1981.0,3.3752568]
[1772606792824,2.02875217,1981.8,1981.0,2.11326791]
[1772606792983,1.26141581,1981.9,1981.0,2.11326791]
[1772606793721,3.29016798,1981.9,1981.0,2.11326791]
[1772606794586,7.07343321,1982.3,1981.2,2.11326791]
[1772606794813,8.80143321,1982.3,1981.2,2.11326791]
[1772606795695,1.728,1982.2,1981.2,2.11326791]
[1772606796616,7.07343321,1982.3,1981.3,1.2617978]
[1772606796819,1.26312929,1982.4,1981.4,2.11326791]
[1772606797123,1.728,1982.3,1981.4,2.11326791]
[1772606797922,3.75675217,1982.3,1981.4,2.11326791]
[1772606798422,2.02875217,1982.3,1981.4,2.11326791]
[1772606798630,1.728,1982.2,1981.4,2.11326791]
[1772606799203,1.26128853,1982.1,1981.5,3.37493836]
[1772606800028,0.002,1982.4,1981.6,2.11326791]
[1772606800029,1.26309902,1982.4,1981.6,2.11326791]
[1772606800194,0.002,1982.4,1981.6,2.11326791]
[1772606800599,0.002,1982.5,1981.9,2.11326791]
[1772606801310,0.002,1982.5,1982.1,2.11326791]
[1772606802613,0.002,1982.4,1982.1,2.11326791]
[1772606803014,0.002,1982.4,1981.9,2.11326791]
[1772606803248,0.002,1982.4,1981.9,3.37468213]
[1772606806515,0.002,1982.4,1982.0,2.11326791]
[1772606807311,0.002,1982.4,1982.1,1.26128853]
[1772606807514,0.002,1982.4,1982.0,3.37457912]
[1772606808773,0.002,1982.4,1982.0,2.11326791]
[1772606808971,0.002,1982.4,1982.0,3.37461502]
[1772606810344,0.002,1982.4,1982.0,2.11326791]
[1772606810644,0.002,1982.4,1982.0,3.37461695]
[1772606810876,0.002,1982.4,1982.0,1.26134904]
[1772606811064,0.002,1982.7,1982.3,2.18020477]
[1772606811378,1.26291679,1982.7,1982.3,2.18020477]
[1772606811541,1.26291679,1982.7,1982.1,4.7808731]
[1772606811744,0.002,1982.7,1982.2,3.44142967]
[1772606811949,0.002,1982.7,1982.3,2.18020477]
[1772606812748,0.002,1982.7,1982.5,2.18020477]
[1772606813774,0.002,1982.7,1982.6,1.26097044]
[1772606814279,0.002,1982.7,1982.5,3.44119158]
[1772606814499,0.002,1982.7,1982.3,1.26112802]
[1772606814704,0.002,1982.7,1982.2,5.04484796]
[1772606814705,0.002,1982.7,1982.2,3.44138146]
[1772606814979,0.002,1982.6,1982.1,0.001]
[1772606815346,0.002,1982.6,1982.1,1.26227507]
[1772606816194,0.002,1982.6,1982.1,0.001]
[1772606818413,3.86400482,1982.6,1982.1,0.001]
[1772606818744,2.13600482,1982.5,1982.1,0.001]
[1772606820288,3.39709087,1982.5,1982.1,0.001]
[1772606820803,3.39706302,1982.5,1981.8,1.22447946]
[1772606821008,3.39706302,1982.5,1981.8,3.40468423]
[1772606821388,2.13600482,1982.4,1981.7,1.26150566]
[1772606821589,2.13600482,1982.4,1981.7,3.44171043]
[1772606821789,2.9870582,1982.5,1981.8,2.18020477]
[1772606822218,3.39901965,1982.6,1981.8,2.18020477]
[1772606822392,2.98897436,1982.6,1982.0,2.18020477]
[1772606823040,2.13600482,1982.3,1981.5,2.18020477]
[1772606823614,5.80357442,1982.6,1981.4,2.18020477]
[1772606823802,3.01340214,1982.5,1981.6,2.18020477]
[1772606824125,0.002,1982.6,1981.8,2.18020477]
[1772606824326,1.2629758,1982.6,1981.8,2.18020477]
[1772606824527,1.2629758,1982.6,1982.0,2.18020477]
[1772606827545,1.2629758,1982.6,1982.0,3.44152582]
[1772606827726,0.002,1982.6,1982.0,3.44152582]
[1772606828051,0.002,1982.2,1982.0,3.44152582]
[1772606828208,0.002,1982.2,1981.8,2.18020477]
[1772606829814,0.002,1982.2,1981.8,3.44163584]
[1772606831548,0.002,1982.2,1981.9,2.18020477]
[1772606831740,0.002,1982.3,1982.0,2.18020477]
[1772606831937,0.002,1982.3,1982.1,3.4414933]
[1772606833832,0.002,1982.3,1982.1,2.18020477]
[1772606834032,0.002,1982.3,1982.0,1.26134471]
[1772606834450,0.002,1982.3,1981.9,3.4416133]
[1772606834832,2.13800482,1982.3,1981.6,1.26255327]
[1772606835154,2.13800482,1982.3,1981.6,0.001]
[1772606835357,1.726,1982.3,1981.7,2.18020477]
[1772606835857,0.002,1982.3,1981.7,2.18020477]
[1772606836053,0.002,1982.3,1981.8,3.44168423]
[1772606836923,6.482,1982.7,1982.3,2.18020477]
[1772606836924,0.002,1982.7,1982.3,2.18020477]
[1772606837151,0.002,1982.9,1982.5,3.45331253]
[1772606837361,0.004,1982.9,1982.5,2.18020477]
[1772606837923,0.004,1982.9,1982.6,1.26097044]
[1772606838560,0.004,1982.9,1982.7,2.14831743]
[1772606840233,0.004,1982.9,1982.5,2.18635331]
[1772606840456,0.004,1982.8,1982.3,3.44748068]
[1772606840759,0.004,1982.8,1982.4,2.18635331]
[1772606842358,0.002,1982.7,1982.2,7.23115011]
[1772606842553,0.002,1982.7,1982.2,3.44757821]
[1772606844941,0.002,1982.7,1982.3,2.18635331]
[1772606845861,0.002,1982.7,1982.2,1.2612249]
[1772606845862,6.48,1983.8,1982.2,3.64162107]
[1772606846060,0.002,1985.0,1983.9,2.18635331]
[1772606846292,0.002,1985.0,1983.4,2.38039617]
[1772606846293,2.22307496,1985.0,1984.2,1.25995363]
[1772606846480,2.22307496,1985.0,1983.8,4.71963442]
[1772606846679,1.05909361,1984.9,1983.8,3.44652666]
[1772606846891,2.22107496,1984.8,1983.8,3.44652666]
[1772606847191,1.02542695,1984.7,1983.8,3.44652666]
[1772606847665,1.02542695,1984.7,1983.9,2.18635331]
[1772606847866,0.002,1985.0,1983.9,2.18635331]
[1772606848668,1.26144584,1985.0,1984.0,3.44643395]
[1772606850343,2.22107496,1984.9,1984.0,2.18635331]
[1772606850690,1.25957275,1984.8,1984.1,1.26001713]
[1772606851034,1.25957275,1984.8,1984.0,3.44639533]
[1772606851615,3.48062874,1984.9,1984.0,3.44639533]
[1772606851787,3.48062874,1984.9,1984.1,2.18635331]
[1772606852538,3.48262874,1984.9,1984.1,2.18635331]
[1772606852744,2.22107496,1984.8,1984.1,1.26001286]
[1772606852948,2.22107496,1984.5,1983.8,3.4465496]
[1772606853226,2.22107496,1984.1,1983.2,2.18635331]
[1772606853429,2.22107496,1983.9,1982.9,2.18635331]
[1772606853618,2.22107496,1983.9,1982.9,3.44713297]
[1772606855022,2.22107496,1983.9,1982.7,1.437]
[1772606855023,2.22107496,1983.6,1982.7,1.437]
[1772606855228,3.92726553,1983.8,1982.8,2.18635331]
[1772606855406,2.22107496,1983.9,1983.1,2.18635331]
[1772606855605,3.48122981,1983.9,1983.1,2.18635331]
[1772606856730,3.48122093,1983.9,1983.1,2.18635331]
[1772606857436,3.48122093,1983.9,1983.2,1.26058894]
[1772606857836,2.22107496,1983.8,1983.1,1.26060715]
[1772606858626,2.22107496,1983.6,1982.8,3.44715343]
[1772606858826,2.22107496,1983.6,1982.7,1.26189334]
[1772606858827,2.22107496,1983.5,1982.7,1.26189334]
[1772606860514,1.26046183,1983.4,1982.7,0.001]
[1772606861113,1.26046183,1983.4,1982.5,2.18735331]
[1772606861114,3.91107496,1983.3,1982.5,0.001]
[1772606861314,2.22107496,1983.2,1982.5,1.26200805]
[1772606861722,1.26046183,1983.4,1982.5,3.44836136]
[1772606862244,3.48150308,1983.5,1982.5,3.44836136]
[1772606862435,3.48150308,1983.5,1982.6,2.18635331]
[1772606863341,2.22107496,1983.5,1982.6,2.18635331]
[1772606863513,3.48147381,1983.5,1982.6,2.18635331]
[1772606863913,3.48147528,1983.5,1982.6,2.18635331]
[1772606864645,3.48147528,1983.5,1982.8,0.001]
[1772606866644,1.26052538,1983.3,1982.8,0.001]
[1772606866849,2.22107496,1983.2,1982.8,0.001]
[1772606867656,2.22107496,1983.0,1982.5,0.001]
[1772606868731,3.48513023,1982.9,1982.5,0.001]
[1772606868931,2.22435057,1982.8,1982.5,0.001]
[1772606869436,2.22435057,1982.8,1982.0,1.26130225]
[1772606869638,2.22435057,1982.8,1981.7,1.26054311]
[1772606870065,3.92735057,1982.7,1981.8,2.1875103]
[1772606871067,1.26097044,1982.6,1981.9,1.26141581]
[1772606871433,1.26097044,1982.6,1981.8,7.23323312]
[1772606871434,2.22435057,1982.5,1981.6,1.26256279]
[1772606871647,2.22435057,1982.5,1981.6,1.26259307]
[1772606873046,2.22435057,1982.3,1981.6,1.26259307]
[1772606873572,2.22435057,1982.3,1981.6,0.001]
[1772606873944,3.93035057,1982.3,1981.6,0.001]
[1772606875261,1.2612249,1982.2,1981.6,0.001]
[1772606875844,3.4855555,1982.3,1981.6,0.001]
[1772606876040,5.1925555,1982.3,1981.6,2.1885103]
[1772606877469,5.1925555,1982.3,1981.6,3.4500701]
[1772606877770,5.1925555,1982.3,1981.7,0.001]
[1772606882676,2.22435057,1982.1,1981.5,0.001]
[1772606883049,2.22435057,1982.1,1981.3,0.001]
[1772606883249,2.22435057,1982.1,1981.3,1.26278667]
[1772606884064,2.22435057,1982.1,1981.4,2.1875103]
[1772606884275,3.48569745,1982.1,1981.5,1.26167045]
[1772606886475,3.48569745,1982.1,1981.5,2.1875103]
[1772606889355,2.22435057,1982.1,1981.5,3.44918064]
[1772606889754,2.97226362,1982.2,1981.6,2.1875103]
[1772606889961,1.26126362,1982.2,1981.6,2.1875103]
[1772606890162,6.48,1982.3,1981.6,2.1875103]
[1772606890561,2.97497404,1982.6,1981.8,2.1875103]
[1772606890922,0.002,1982.0,1981.8,2.1875103]
[1772606891872,0.002,1982.0,1981.5,2.1875103]
[1772606892381,0.002,1982.0,1981.4,0.001]
[1772606892557,1.26335216,1982.0,1981.4,1.26272888]
[1772606894493,1.26335216,1982.0,1981.4,3.45023918]
[1772606894858,0.002,1982.0,1981.4,3.45023918]
[1772606897387,2.22635057,1982.0,1981.4,3.45023918]
[1772606899186,7.22635057,1982.0,1981.4,3.45023918]
[1772606899488,1.26141581,1981.9,1981.4,3.45023918]
[1772606900057,8.48770988,1982.0,1981.5,2.25316952]
[1772606901261,2.66617777,1982.0,1981.7,2.25316952]
[1772606901470,2.45193172,1982.0,1981.6,1.26160678]
[1772606901670,0.002,1982.1,1981.7,2.25316952]
[1772606901869,0.002,1982.1,1981.8,2.25316952]
[1772606902796,0.002,1981.9,1981.8,2.25316952]
[1772606903387,0.002,1981.9,1981.8,3.51464898]
[1772606903579,0.002,1982.0,1981.8,1.26147946]
[1772606904996,0.002,1982.0,1981.6,2.36482159]
[1772606905294,0.002,1982.0,1981.6,1.26156227]
[1772606906582,0.002,1982.0,1981.5,2.25416952]
[1772606906777,0.002,1982.0,1981.5,3.51583661]
[1772606907173,2.19103703,1982.0,1981.5,0.001]
[1772606907581,3.45241798,1982.0,1981.5,0.001]
[1772606908093,2.18903703,1981.9,1981.5,0.001]
[1772606908605,2.18903703,1981.9,1981.3,0.001]
[1772606908767,2.18903703,1981.7,1981.3,0.001]
[1772606908966,2.18903703,1981.7,1981.3,1.26276639]
[1772606909166,2.18903703,1981.9,1981.3,1.26276639]
[1772606909367,2.18903703,1981.9,1981.3,0.001]
[1772606909582,2.18903703,1981.7,1981.3,0.001]
[1772606911795,2.18903703,1981.6,1981.3,0.001]
[1772606915902,2.18903703,1981.6,1981.4,0.001]
[1772606916098,2.18903703,1981.4,1980.8,1.37032799]
[1772606916286,2.18903703,1981.4,1980.8,0.001]
[1772606916801,2.18903703,1981.2,1980.8,0.001]
[1772606918103,2.18903703,1980.9,1980.1,3.51569772]
[1772606918284,2.18903703,1980.9,1980.1,3.51573155]
[1772606918679,3.45115334,1980.8,1980.1,3.51573155]
[1772606919003,2.18903703,1980.7,1980.1,2.25316952]
[1772606919308,2.18903703,1980.7,1980.0,1.26256845]
[1772606919481,2.18903703,1980.7,1979.9,3.51580301]
[1772606920701,2.18903703,1980.5,1979.9,3.51580301]
[1772606921870,1.26222982,1980.7,1979.9,1.26263349]
[1772606922074,2.18903703,1981.0,1980.0,2.25316952]
[1772606922303,3.90603703,1980.9,1980.0,2.25316952]
[1772606922602,2.18903703,1980.8,1980.1,3.51573201]
[1772606924804,3.45116394,1980.8,1980.1,3.51573201]
[1772606924999,1.26212691,1980.8,1980.1,3.51573201]
[1772606925202,1.26212691,1980.8,1979.9,2.25316952]
[1772606925203,2.18903703,1980.7,1979.9,2.25316952]
[1772606927679,3.45127797,1980.7,1980.2,0.001]
[1772606928990,2.3169174,1980.6,1980.2,0.001]
[1772606930107,3.57919539,1980.6,1980.2,0.001]
[1772606930407,2.3169174,1980.5,1980.2,0.001]
[1772606932502,3.57912456,1980.7,1980.2,0.001]
[1772606933109,1.26220716,1980.7,1980.2,0.001]
[1772606933303,2.3169174,1980.6,1980.2,0.001]
[1772606934415,1.26230749,1980.5,1980.2,0.001]
[1772606935813,3.57905978,1980.8,1980.2,2.25901498]
[1772606935992,5.29605978,1980.8,1980.2,2.25901498]
[1772606936192,5.29605978,1980.8,1980.2,3.52146361]
[1772606936390,2.3169174,1980.7,1980.2,3.52146361]
[1772606936592,2.3169174,1980.7,1980.2,0.001]
[1772606936814,2.3169174,1980.7,1980.2,1.26349444]
[1772606938785,2.3169174,1980.6,1980.2,0.001]
[1772606939915,2.3169174,1980.6,1980.0,0.001]
[1772606940216,2.3159174,1980.6,1980.0,0.001]
[1772606940421,2.3169174,1980.4,1980.0,0.001]
[1772606940794,3.57917626,1980.6,1980.3,0.001]
[1772606940996,6.48,1980.9,1980.3,2.25901498]
[1772606941198,0.002,1980.7,1980.3,2.25901498]
[1772606941746,1.27555265,1981.3,1980.5,2.25801498]
[1772606941747,0.002,1981.3,1980.5,2.25801498]
[1772606941893,0.002,1981.0,1980.5,2.25801498]
[1772606942417,0.002,1981.0,1980.7,2.25801498]
[1772606943808,0.004,1981.0,1980.5,3.52031636]
[1772606944694,0.004,1981.0,1980.5,3.52032062]
[1772606945099,0.004,1981.0,1980.6,2.25801498]
[1772606946929,0.004,1981.0,1980.6,3.52019967]
[1772606947093,0.004,1981.0,1980.7,2.25801498]
[1772606948096,0.004,1981.0,1980.6,1.26218469]
[1772606948097,0.002,1981.0,1980.6,1.26218469]
[1772606948295,0.002,1981.0,1980.5,3.52027311]
[1772606949332,2.3189174,1981.0,1980.5,3.52031782]
[1772606949500,2.2902164,1981.0,1980.5,3.52031782]
[1772606949898,2.3169174,1981.1,1980.5,3.52031782]
[1772606950810,2.3169174,1981.1,1980.6,2.25801498]
[1772606951023,6.48,1981.2,1980.7,3.52019501]
[1772606951356,7.74186373,1981.2,1980.7,2.25801498]
[1772606951627,7.74186373,1981.2,1980.4,2.25801498]
[1772606951628,2.3169174,1981.1,1980.4,2.25801498]
[1772606952230,1.26186373,1981.2,1980.3,0.001]
[1772606952231,2.3169174,1980.8,1980.3,0.001]
[1772606954203,3.57903371,1980.8,1980.7,0.001]
[1772606955731,3.57903371,1980.8,1980.5,0.001]
[1772606955732,2.3169174,1980.7,1980.5,0.001]
[1772606958034,3.57910975,1980.7,1980.5,0.001]
[1772606960640,2.3169174,1980.7,1980.3,2.16691735]
[1772606960941,1.722,1980.8,1980.3,2.16691735]
[1772606961338,1.723,1981.1,1980.3,2.16691735]
[1772606961516,2.98493837,1981.1,1980.3,2.16691735]
[1772606961916,5.3254422,1981.1,1980.3,2.16691735]
[1772606962743,5.3254422,1981.1,1980.5,2.16591735]
[1772606963039,11.80730317,1981.3,1980.5,2.16591735]
[1772606963345,0.002,1981.3,1980.8,2.16591735]
[1772606965238,0.002,1981.3,1981.0,2.16591735]
[1772606966244,0.002,1981.3,1980.7,2.16591735]
[1772606967747,1.2637978,1981.3,1980.8,1.26211631]
[1772606968038,1.2637978,1981.3,1980.8,3.42803366]
[1772606968622,0.002,1981.3,1980.8,3.42803366]
[1772606968928,2.34250383,1981.3,1980.8,3.42803366]
[1772606969445,0.002,1981.2,1980.8,3.42803366]
[1772606971552,0.002,1981.2,1980.9,2.16591735]
[1772606972152,0.002,1981.2,1980.9,3.42790671]
[1772606972357,0.002,1981.2,1980.9,2.16591735]
[1772606972946,0.002,1981.2,1980.7,1.26215443]
[1772606973148,0.002,1981.2,1980.8,2.16591735]
[1772606974622,0.002,1981.2,1981.0,2.16591735]
[1772606976751,0.002,1981.2,1981.0,3.42789878]
[1772606977050,0.002,1981.2,1981.0,2.16591735]
[1772606977268,0.002,1981.2,1981.1,2.16591735]
[1772606977426,0.002,1981.3,1981.1,2.16591735]
[1772606977750,0.002,1981.3,1980.6,3.42913007]
[1772606977751,2.34250383,1981.3,1980.6,3.42913007]
[1772606978738,3.60236532,1981.2,1980.6,2.16691735]
[1772606979654,2.34050383,1981.1,1980.6,2.16691735]
[1772606981450,2.34050383,1981.1,1980.7,1.26218003]
[1772606981753,2.34050383,1981.1,1980.7,2.16591735]
[1772606982061,2.34250383,1981.1,1980.7,2.16591735]
[1772606982351,0.002,1981.1,1980.7,2.16591735]
[1772606983469,0.002,1981.1,1980.7,3.42807008]
[1772606984158,0.002,1981.1,1980.8,2.16591735]
[1772606985351,0.002,1981.2,1980.8,2.16591735]
[1772606986034,0.002,1981.2,1981.0,2.16591735]
[1772606988374,0.002,1981.2,1981.1,3.46830068]
[1772606989279,0.002,1981.6,1981.2,2.20637549]
[1772606989498,0.002,1981.8,1981.3,1.27555265]
[1772606989637,0.008,1981.8,1981.3,1.27555265]
[1772606989839,0.008,1981.8,1981.4,2.20637549]
[1772606990049,0.002,1981.9,1981.2,2.20637549]
[1772606990376,0.002,1981.9,1981.4,2.20637549]
[1772606992279,0.002,1981.9,1981.6,2.20637549]
[1772606994239,0.002,1981.9,1981.7,1.26154311]
[1772606994861,0.002,1981.8,1981.7,1.26154311]
[1772606995059,0.002,1982.1,1981.8,2.20637549]
[1772606995260,2.28561161,1982.4,1981.9,2.20637549]
[1772606996038,2.28561161,1982.4,1981.7,1.26154311]
[1772606996370,2.28561161,1982.5,1982.0,2.20637549]
[1772606997274,0.53315318,1982.7,1982.0,2.20637549]
[1772606997460,0.002,1982.9,1982.5,2.20637549]
[1772606997461,0.53315319,1982.8,1982.5,2.20637549]
[1772606998053,1e-08,1982.9,1982.5,2.20637549]
[1772606998261,0.002,1983.2,1982.8,2.20637549]
[1772606998751,1.34542567,1983.2,1982.6,3.46734245]
[1772607000176,1.34542567,1983.2,1982.3,3.46753676]
[1772607000177,1.34029512,1983.0,1982.3,3.46753676]
[1772607000380,1.34029512,1983.0,1982.1,2.20637549]
[1772607001461,1.33405816,1982.7,1982.0,2.20637549]
[1772607002096,1.726,1982.9,1981.5,2.20637549]
[1772607002097,1.33405816,1982.4,1981.5,2.20637549]
[1772607002253,1.33405816,1982.1,1981.3,2.20637549]
[1772607002751,1.33093449,1981.9,1981.2,0.001]
[1772607003152,1.33093449,1981.9,1981.2,2.20737549]
[1772607003153,1.33093449,1981.8,1981.2,2.20737549]
[1772607003353,1.32777602,1981.8,1981.2,2.20737549]
[1772607003555,1.32777602,1981.8,1981.2,0.001]
[1772607004364,1.26154311,1981.7,1981.2,0.001]
[1772607004553,1.32777602,1981.8,1981.2,0.001]
[1772607004759,1.32461054,1982.4,1981.2,2.20737549]
[1772607004957,1.32461054,1982.4,1981.4,2.20637549]
[1772607005673,1.26100537,1982.6,1981.4,2.20637549]
[1772607006379,1.26100537,1982.6,1981.5,1.26167045]
[1772607006581,2.57928468,1982.6,1981.6,2.20637549]
[1772607007084,1.31827931,1982.5,1981.6,2.20637549]
[1772607008982,1.31827931,1982.5,1981.7,1.26154311]
[1772607009187,2.57935832,1982.5,1981.7,3.4679186]
[1772607011482,2.57935832,1982.5,1981.7,2.20637549]
[1772607011873,1.30241357,1982.7,1981.8,2.20637549]
[1772607012069,1.26088762,1982.8,1981.8,2.20637549]
[1772607012457,13.22833263,1982.9,1981.8,2.20637549]
[1772607012458,10.74522947,1982.9,1981.8,2.20637549]
[1772607013062,1.78292312,1982.6,1981.8,2.20637549]
[1772607013391,1.29924449,1982.5,1981.8,3.4678544]
[1772607013593,2.56027897,1982.5,1981.9,2.20637549]
[1772607014093,1.29604914,1982.3,1981.4,2.20637549]
[1772607016288,2.9841116,1982.4,1981.6,2.20637549]
[1772607016674,1.26110592,1982.4,1981.6,2.20637549]
[1772607017192,6.33076795,1982.5,1981.6,2.20637549]
[1772607017193,2.54755186,1982.5,1981.6,2.20637549]
[1772607017578,2.98400219,1982.6,1981.6,2.20637549]
[1772607019304,1.26100219,1982.6,1981.8,2.18057996]
[1772607019601,2.53907141,1982.6,1981.8,2.18057996]
[1772607019802,5.04382588,1982.7,1981.8,2.18057996]
[1772607019803,1.26094833,1982.7,1981.8,2.18057996]
[1772607020302,1.27923386,1982.6,1981.8,2.18057996]
[1772607021371,1.27923386,1982.6,1982.0,2.19399403]
[1772607021372,2.54023388,1982.6,1982.0,2.19399403]
[1772607021810,1.26100002,1982.6,1982.0,2.19399403]
[1772607022104,2.53375368,1982.6,1982.0,2.19399403]
[1772607023602,2.53375368,1982.6,1981.6,2.19399403]
[1772607023603,1.26627977,1982.5,1981.6,2.19399403]
[1772607023984,1.26627977,1982.5,1981.4,3.45568236]
[1772607024182,1.26627977,1982.4,1981.4,3.45568236]
[1772607024380,1.26303643,1982.2,1981.4,2.19399403]
[1772607024785,1.26303643,1982.2,1981.4,3.4557228]
[1772607024986,1.26303643,1982.2,1981.4,2.19399403]
[1772607025510,1.26303643,1982.2,1981.4,3.4557272]
[1772607025807,2.52107684,1982.1,1981.5,2.19399403]
[1772607026108,1.26128853,1982.1,1981.5,2.19399403]
[1772607027309,2.51782531,1982.1,1981.5,2.19399403]
[1772607027708,7.72233684,1982.3,1981.6,2.19399403]
[1772607027895,6.46117396,1982.3,1981.6,2.19399403]
[1772607029711,6.46117396,1982.3,1981.8,2.19399403]
[1772607029914,7.72234467,1982.3,1981.8,2.19399403]
[1772607030208,2.66705785,1983.8,1982.1,2.19299403]
[1772607030209,1.26272295,1983.0,1982.1,2.19299403]
[1772607030408,1.26272295,1983.0,1982.2,2.19399403]
[1772607030817,1.26272295,1983.0,1982.2,4.57722511]
[1772607030818,0.002,1983.0,1982.2,4.57722511]
[1772607030986,0.002,1983.0,1982.4,2.19399403]
[1772607031816,0.002,1983.0,1982.4,3.45505214]
[1772607032208,0.002,1983.0,1982.5,2.19399403]
[1772607033914,0.002,1983.0,1982.6,1.26097044]
[1772607034122,0.002,1983.0,1982.6,3.45496447]
[1772607034919,0.002,1983.0,1982.6,2.19399403]
[1772607035213,2.34393559,1983.0,1982.3,1.26112365]
[1772607035712,2.34393559,1983.0,1982.3,3.45511768]
[1772607035919,2.34393559,1983.0,1982.2,5.04487022]
[1772607035920,1.26077966,1982.9,1982.4,3.45507946]
[1772607036119,2.34193559,1982.8,1982.2,2.19399403]
[1772607036413,2.34193559,1982.8,1982.0,4.90729459]
[1772607037196,2.34193559,1982.8,1982.0,3.45529459]
[1772607037397,1.26077966,1982.9,1982.0,2.19399403]
[1772607037398,3.60271525,1982.9,1982.0,2.19399403]
[1772607037597,2.34193559,1982.8,1982.0,2.19399403]
[1772607038121,3.60283111,1982.8,1982.1,3.45528256]
[1772607039106,1.26081785,1982.9,1982.2,2.19399403]
[1772607040327,1.26081785,1982.9,1982.2,3.45515978]
[1772607040504,3.60275344,1982.9,1982.2,3.45515978]
[1772607040820,0.002,1983.0,1982.3,2.19399403]
[1772607041048,1.26272468,1983.0,1982.3,2.19399403]
[1772607042324,2.34393559,1983.0,1982.3,3.45510189]
[1772607042532,2.34193559,1982.9,1981.8,1.26143368]
[1772607042692,2.34193559,1982.9,1981.9,2.19399403]
[1772607043425,2.34193559,1982.9,1982.2,0.001]
[1772607043731,2.34193559,1982.8,1982.2,0.001]
[1772607044393,2.34193559,1982.6,1982.2,0.001]
[1772607045108,2.34193559,1982.6,1982.0,0.001]
[1772607045307,2.34193559,1982.5,1981.7,0.001]
[1772607046504,2.34193559,1982.3,1981.7,0.001]
[1772607046704,2.34193559,1982.2,1981.7,0.001]
[1772607047712,2.34193559,1982.0,1981.7,0.001]
[1772607048914,3.38176963,1981.9,1981.7,0.001]
[1772607049396,2.12035382,1982.0,1981.7,0.001]
[1772607050727,2.12035382,1982.0,1981.5,0.001]
[1772607050905,1.26141581,1981.9,1981.5,0.001]
[1772607052032,3.38176963,1981.9,1981.5,0.001]
[1772607052198,2.12035382,1981.8,1981.5,0.001]
[1772607053032,1.26154311,1981.7,1981.5,0.001]
[1772607055520,1.26154311,1981.7,1981.6,0.001]
[1772607057348,2.12035382,1981.7,1981.4,0.001]
[1772607057548,1.26341581,1981.9,1981.3,2.21323712]
[1772607057845,2.12035382,1981.8,1981.3,2.21323712]
[1772607058030,2.12035382,1981.8,1981.3,0.001]
[1772607059414,2.12035382,1981.6,1981.2,0.001]
[1772607060120,3.38189693,1981.7,1981.2,2.21323712]
[1772607060322,5.04617247,1981.8,1981.2,2.21323712]
[1772607060323,1.26152836,1981.8,1981.2,2.21323712]
[1772607061129,1.26342357,1981.9,1981.2,2.21323712]
[1772607061537,1.26342357,1981.9,1981.4,2.21223712]
[1772607062539,0.002,1981.9,1981.4,2.21223712]
[1772607063714,0.002,1981.9,1981.4,3.47392346]
[1772607064545,0.002,1981.9,1981.5,2.21223712]
[1772607065348,0.002,1981.9,1981.3,2.21223712]
[1772607065349,2.12235382,1981.9,1981.3,2.21223712]
[1772607065643,3.38381452,1981.9,1981.3,3.4740316]
[1772607066227,0.002,1981.9,1981.4,2.21223712]
[1772607067624,0.002,1981.9,1981.6,2.21223712]
[1772607068142,2.12235382,1981.9,1981.4,2.21223712]
[1772607068335,3.394277,1981.8,1981.2,3.47504895]
[1772607068713,3.394277,1981.8,1981.4,0.001]
[1772607069146,0.002,1981.8,1981.4,2.21323712]
[1772607069752,3.396277,1981.8,1981.4,0.001]
[1772607071731,3.38189693,1981.7,1981.3,0.001]
[1772607073253,2.12035382,1981.5,1981.1,0.001]
[1772607073762,3.38208794,1981.4,1981.1,0.001]
[1772607075725,3.38208794,1981.4,1981.0,1.82620164]
[1772607075726,4.65601112,1981.4,1981.0,1.82620164]
[1772607076147,1.724,1981.8,1981.1,2.21223712]
[1772607076361,2.98548305,1981.8,1981.1,2.21223712]
[1772607076667,5.10583687,1981.8,1981.1,2.21223712]
[1772607076838,6.37976005,1981.8,1981.1,2.21223712]
[1772607077151,1.27392318,1981.6,1981.1,2.21223712]
[1772607077723,1.27392318,1981.4,1981.0,1.82620164]
[1772607078124,3.3793762,1981.4,1981.0,0.001]
[1772607080061,1.2617978,1981.3,1981.0,0.001]
[1772607081232,3.56779776,1981.2,1980.7,2.15030522]
[1772607081639,2.29387458,1981.1,1980.6,0.001]
[1772607081836,1.26198889,1981.0,1980.6,0.001]
[1772607082958,2.53591207,1981.0,1980.6,0.001]
[1772607083159,2.53591207,1981.0,1980.8,0.001]
[1772607083334,2.53591207,1981.0,1980.6,0.001]
[1772607084164,3.56779776,1980.8,1980.3,2.15030522]